bitfinex-derivatives/quotes_ETHF0:USTF0_20251008
["timestamp","ask_amount","ask_price","bid_price","bid_amount"]
[1759882093233,2.29752,4454.1,4453.9,0.40393]
[1759882093433,2.29752,4454.1,4454.0,0.225]
[1759882093630,2.29752,4454.1,4454.0,13.51365073]
[1759882093827,1.66732,4454.1,4454.0,0.8948]
[1759882094027,1.2752,4454.0,4453.9,0.225]
[1759882094230,2.29752,4454.0,4453.9,13.28865073]
[1759882094438,5.15933035,4454.0,4453.8,1.1198]
[1759882094635,4.12521035,4454.0,4453.9,15.38805073]
[1759882095132,4.12521035,4454.0,4453.9,2.0994]
[1759882095736,2.86181035,4454.0,4453.9,15.38805073]
[1759882096534,3.2078,4454.5,4454.0,0.40392]
[1759882096744,1.8075882,4454.4,4454.3,1.5026]
[1759882096938,5.29702808,4454.4,4454.3,1.5026]
[1759882097137,1.66731,4454.1,4454.0,1.8855]
[1759882097438,1.2634,4454.1,4454.0,1.8855]
[1759882097640,1.2634,4454.1,4454.0,15.17415073]
[1759882097840,1.2634,4454.1,4454.0,15.77095073]
[1759882098044,3.61168,4454.5,4454.3,1.60849]
[1759882098235,0.00160704,4454.7,4454.6,2.0994]
[1759882098431,0.00160704,4454.7,4454.6,2.3244]
[1759882100038,3.2078,4455.0,4454.6,2.3244]
[1759882100039,3.2078,4455.7,4455.6,2.0994]
[1759882100240,0.40376,4455.8,4455.7,0.8948]
[1759882100435,1.66716,4455.8,4455.7,1.5026]
[1759882100638,0.4038,4455.4,4455.2,0.8948]
[1759882100832,1.2634,4455.3,4455.2,1.5026]
[1759882101039,4.16131221,4455.3,4455.2,1.5026]
[1759882101238,4.16131221,4455.3,4455.2,2.0994]
[1759882101642,1.8936,4455.1,4455.0,0.8948]
[1759882102238,0.645,4455.1,4455.0,15.17415073]
[1759882102439,3.20980232,4455.4,4455.3,0.6078]
[1759882102645,3.85480232,4455.4,4455.3,1.5026]
[1759882102838,1.66722,4455.1,4455.0,1.2777]
[1759882103037,0.6184,4455.1,4454.6,0.8948]
[1759882103243,0.6184,4455.1,4454.6,1.7276]
[1759882103244,1.2634,4454.7,4454.6,1.7276]
[1759882103544,0.225,4455.1,4455.0,1.5875]
[1759882103742,0.225,4455.1,4455.0,2.4823]
[1759882103944,3.12741581,4455.1,4455.0,2.4823]
[1759882104144,2.90241581,4455.1,4455.0,15.77095073]
[1759882104639,2.90241581,4455.1,4455.0,15.99595073]
[1759882105345,3.20980232,4455.4,4455.0,13.89655073]
[1759882105645,3.20980232,4455.4,4455.3,15.79186073]
[1759882106037,3.20980232,4455.4,4455.3,2.50321]
[1759882106239,3.85480232,4455.4,4455.3,2.0994]
[1759882106540,4.47320232,4455.4,4455.3,1.5026]
[1759882107041,3.85480232,4455.4,4455.3,2.0994]
[1759882107246,3.20980232,4455.4,4455.3,2.0994]
[1759882107447,3.20980232,4455.4,4455.3,2.3244]
[1759882109050,4.41660232,4455.4,4455.3,2.3244]
[1759882110049,3.80330232,4455.4,4455.3,2.3244]
[1759882110550,3.20980232,4455.4,4455.3,2.3244]
[1759882110845,0.00200232,4455.4,4455.3,2.3244]
[1759882112239,0.00200232,4455.4,4455.3,0.8948]
[1759882112240,1.20880232,4455.4,4455.3,0.8948]
[1759882112445,1.2068,4455.2,4455.1,1.5474]
[1759882112639,0.5935,4455.2,4455.1,2.1815]
[1759882112839,0.00200232,4455.4,4455.3,2.1815]
[1759882113248,0.00200232,4455.4,4455.3,2.81031]
[1759882113447,0.40580232,4455.4,4455.3,2.81031]
[1759882115154,0.00200232,4455.4,4455.3,2.81031]
[1759882115653,0.00200232,4455.4,4455.3,6.01811]
[1759882117053,0.40580232,4455.4,4455.3,5.79311]
[1759882117248,1.61260232,4455.4,4455.3,6.01811]
[1759882117455,0.00200232,4455.4,4455.3,6.01811]
[1759882121754,1.62812,4455.2,4455.1,1.33782]
[1759882121951,1.62812,4455.2,4455.1,1.5248]
[1759882122154,0.40384,4454.9,4454.7,3.2078]
[1759882122459,1.62819,4454.4,4454.3,0.934]
[1759882122653,1.62819,4454.4,4454.3,1.5248]
[1759882122863,1.62819,4454.4,4454.3,1.7498]
[1759882123353,1.62819,4454.4,4454.2,4.1418]
[1759882123354,1.8093,4454.3,4454.2,4.1418]
[1759882123754,4.68593306,4454.3,4454.2,4.1418]
[1759882123955,4.68593306,4454.3,4453.5,4.5247]
[1759882123956,2.21326,4453.6,4453.5,4.5247]
[1759882124157,2.21326,4453.6,4453.5,0.934]
[1759882124353,1.2243,4453.2,4453.1,1.9288]
[1759882124552,1.6283,4453.2,4453.1,1.5248]
[1759882124749,5.12575982,4453.2,4453.1,0.934]
[1759882124959,1.62071,4453.0,4452.9,0.02514959]
[1759882125261,5.12454722,4453.0,4452.9,0.02514959]
[1759882125760,4.13553722,4453.0,4452.9,1.54994959]
[1759882125957,3.2078,4453.8,4453.7,0.5908]
[1759882126155,0.585,4453.2,4453.0,0.225]
[1759882126454,1.8093,4453.1,4453.0,0.225]
[1759882127056,1.8093,4453.1,4453.0,1.159]
[1759882127256,0.40401,4453.0,4452.9,0.02514959]
[1759882127556,5.16176612,4453.0,4452.9,0.02514959]
[1759882127751,4.75775612,4453.0,4452.9,0.95914959]
[1759882127957,4.17275612,4453.0,4452.9,1.54994959]
[1759882128960,4.17275612,4453.0,4452.9,2.17654959]
[1759882128961,0.6317,4453.0,4452.9,2.17654959]
[1759882129362,0.225,4453.3,4453.1,0.934]
[1759882129561,0.8567,4453.3,4453.2,1.5248]
[1759882129865,4.31433528,4453.3,4453.2,1.5248]
[1759882130868,0.6317,4453.7,4453.6,1.62136]
[1759882131162,3.484887,4453.7,4453.6,1.62136]
[1759882131363,4.077487,4453.7,4453.6,0.5908]
[1759882131572,0.5926,4453.3,4453.2,1.33799]
[1759882131765,1.2243,4453.3,4453.2,14.85164073]
[1759882131964,1.2243,4453.3,4453.2,1.5248]
[1759882133472,1.2243,4453.3,4453.2,2.1514]
[1759882136775,0.6317,4453.3,4453.2,2.1514]
[1759882136978,1.03566,4453.6,4453.5,1.9059]
[1759882137176,1.62826,4453.6,4453.5,1.9059]
[1759882137368,4.52500514,4453.6,4453.5,1.9059]
[1759882138077,3.2078,4453.8,4453.6,0.40396]
[1759882138275,3.2078,4453.8,4453.7,15.44625073]
[1759882138473,1.1675,4455.0,4453.7,15.44625073]
[1759882138474,0.40391,4454.1,4454.0,0.3796]
[1759882138678,1.63401,4454.1,4454.0,1.2971]
[1759882138984,1.63401,4454.1,4454.0,2.31932]
[1759882139187,1.63401,4454.1,4454.0,16.22977073]
[1759882139580,1.63401,4454.1,4454.0,15.82585073]
[1759882140580,0.40391,4454.2,4454.1,1.5358]
[1759882140787,8.4328,4454.3,4453.7,0.9175]
[1759882140983,3.61174,4453.8,4453.7,0.9175]
[1759882141377,6.55902034,4453.8,4453.7,0.9175]
[1759882141777,6.78402034,4453.8,4453.7,1.5358]
[1759882141984,3.17228034,4453.8,4453.7,2.1576]
[1759882142284,3.6117,4454.3,4454.2,1.5358]
[1759882142586,3.6117,4454.3,4454.2,2.1576]
[1759882145285,3.2078,4454.9,4454.8,0.6183]
[1759882145585,3.2078,4454.9,4454.8,2.36010158]
[1759882145789,3.2078,4454.9,4454.8,2.1576]
[1759882146089,3.2078,4456.4,4456.3,1.5358]
[1759882146278,3.2078,4457.1,4456.3,0.6183]
[1759882146483,0.75460742,4457.0,4456.6,0.9175]
[1759882146678,0.52960742,4456.9,4456.5,0.9979]
[1759882146880,3.2078,4457.1,4457.0,0.3796]
[1759882147184,3.96447775,4457.1,4457.0,1.2992779]
[1759882147392,3.61139,4457.7,4457.6,0.9175]
[1759882147580,3.61139,4457.7,4457.6,1.5358]
[1759882147581,4.36602494,4457.7,4457.6,1.5358]
[1759882147885,0.225,4457.7,4457.6,1.5358]
[1759882148185,0.40354,4458.3,4458.0,0.3796]
[1759882148387,0.62854,4458.2,4458.1,0.9175]
[1759882149390,0.40354,4458.2,4458.1,0.9175]
[1759882149590,0.62854,4458.2,4458.1,1.5358]
[1759882149783,0.62854,4458.2,4458.1,0.9175]
[1759882153491,0.40364,4457.1,4457.0,3.5895779]
[1759882153697,0.62864,4457.1,4457.0,3.2099779]
[1759882153990,3.59313253,4457.1,4457.0,4.5070779]
[1759882155286,3.36813253,4457.1,4457.0,4.5070779]
[1759882155484,3.18949253,4457.1,4457.0,5.1253779]
[1759882155885,3.18949253,4457.1,4457.0,3.5895779]
[1759882156087,3.18949253,4457.1,4457.0,4.5070779]
[1759882156994,3.18949253,4457.1,4457.0,3.5895779]
[1759882157188,3.18949253,4457.1,4457.0,4.5070779]
[1759882159592,3.18949253,4457.1,4457.0,5.7471779]
[1759882159798,3.18726324,4457.1,4457.0,12.47808791]
[1759882160300,3.18726324,4457.1,4457.0,11.85628791]
[1759882161693,2.96226324,4457.1,4457.0,12.47808791]
[1759882162087,3.18726324,4457.1,4457.0,12.47808791]
[1759882162493,0.225,4457.1,4457.0,12.47808791]
[1759882164000,0.62864,4457.1,4457.0,12.47808791]
[1759882165099,0.40364,4457.1,4457.0,12.47808791]
[1759882165593,0.40363,4457.2,4457.0,11.78558791]
[1759882165794,0.40363,4457.2,4457.1,7.64841001]
[1759882165999,0.40363,4457.2,4457.1,8.26671001]
[1759882166197,2.96730357,4457.4,4457.1,2.1576]
[1759882166394,2.96730357,4457.4,4457.3,8.26671001]
[1759882166795,3.37092357,4457.4,4457.3,1.5358]
[1759882166996,0.40364,4457.1,4457.0,4.5062779]
[1759882167304,3.53168801,4457.1,4457.0,3.2099779]
[1759882167503,3.53168801,4457.1,4457.0,0.0021779]
[1759882168596,0.40369,4456.6,4456.5,3.2078]
[1759882168899,3.53816852,4456.6,4456.5,3.2078]
[1759882169497,3.53816852,4456.6,4456.5,3.21038531]
[1759882169694,3.53816852,4456.6,4456.5,4.49828531]
[1759882169895,0.40359,4457.7,4457.6,0.9091]
[1759882170102,0.93225772,4457.7,4457.6,0.9091]
[1759882170303,4.05756503,4457.7,4457.6,2.1443]
[1759882170896,4.05756503,4457.7,4457.6,1.5134]
[1759882171098,4.05756503,4457.7,4457.6,0.9091]
[1759882172194,1.00901,4457.6,4457.0,0.3788]
[1759882172403,0.40364,4457.1,4457.0,8.01881001]
[1759882172604,1.15730772,4457.1,4457.0,8.01881001]
[1759882172802,4.115098,4457.1,4457.0,8.01881001]
[1759882173199,0.40369,4456.6,4456.5,3.58918531]
[1759882173604,3.37004454,4456.6,4456.5,3.58918531]
[1759882173804,3.9031857,4456.6,4456.5,3.21038531]
[1759882174002,0.40373,4456.1,4456.0,3.2078]
[1759882174305,0.40378,4455.6,4455.5,1.2879]
[1759882174499,0.40378,4455.6,4455.5,8.01881001]
[1759882174901,0.40378,4455.6,4455.0,1.2879]
[1759882174902,3.46284699,4455.6,4455.0,1.2879]
[1759882175095,3.46284699,4455.6,4455.0,0.38065372]
[1759882175096,0.40382,4455.1,4455.0,0.38065372]
[1759882175297,1.16410004,4455.1,4455.0,7.11156373]
[1759882175501,4.10819042,4455.1,4455.0,8.02066373]
[1759882175808,4.10819042,4455.1,4455.0,8.62496373]
[1759882176305,3.88319042,4455.1,4455.0,8.62496373]
[1759882176505,4.10819042,4455.1,4455.0,8.62496373]
[1759882177309,0.00160948,4455.1,4455.0,14.25586373]
[1759882177810,0.00160948,4455.1,4455.0,13.02066373]
[1759882179707,0.00160948,4455.1,4455.0,8.02066373]
[1759882179912,0.00160948,4455.1,4455.0,1.28975372]
[1759882180113,0.00160948,4455.1,4455.0,8.02066373]
[1759882180409,0.00160948,4455.1,4455.0,9.20686373]
[1759882185314,0.40373,4456.2,4455.9,0.9141]
[1759882185512,0.40373,4456.2,4456.1,2.1369]
[1759882185708,3.86127471,4456.2,4456.1,2.1369]
[1759882186213,3.86297346,4456.2,4456.1,2.1369]
[1759882186416,3.86303158,4456.2,4456.1,2.1369]
[1759882187111,3.32973592,4456.2,4456.1,2.1369]
[1759882187812,2.92600592,4456.2,4456.1,2.1369]
[1759882188818,0.00169875,4456.2,4456.1,2.1369]
[1759882189113,3.61141,4457.5,4457.4,0.6409]
[1759882189318,4.14473802,4457.5,4457.4,1.555]
[1759882189506,3.74112802,4457.5,4457.4,1.555]
[1759882189711,6.67949895,4457.5,4457.4,2.1369]
[1759882190107,6.68120504,4457.5,4457.4,2.1369]
[1759882190310,6.68120504,4457.5,4457.4,12.07561001]
[1759882190311,0.53503411,4457.5,4457.4,12.07561001]
[1759882190514,0.00170609,4457.5,4457.4,12.07561001]
[1759882190912,0.40354,4458.3,4458.2,0.6409]
[1759882191111,0.93714617,4458.3,4458.2,2.1369]
[1759882191320,3.51136537,4458.3,4458.2,2.1369]
[1759882191617,2.9777592,4458.3,4458.2,2.1369]
[1759882192013,0.00246613,4458.3,4458.2,2.13964255]
[1759882192416,2.9529306,4458.3,4458.2,2.13964255]
[1759882192710,0.00065613,4458.3,4458.2,9.09374256]
[1759882193315,0.00065613,4458.3,4458.2,14.09374256]
[1759882197721,0.00065613,4458.3,4458.2,9.09374256]
[1759882198614,0.00065613,4458.3,4458.2,8.86874256]
[1759882198908,2.87134423,4458.3,4458.2,0.91684255]
[1759882199309,2.87134423,4458.3,4458.2,1.55434255]
[1759882199515,2.87134423,4458.3,4458.2,2.16054255]
[1759882200710,3.4328,4459.3,4459.0,0.3557]
[1759882200914,0.40345,4459.2,4459.1,0.9566]
[1759882201413,0.40353,4458.4,4458.2,0.95934255]
[1759882201619,0.62852,4458.6,4458.5,1.9498]
[1759882201819,0.40554076,4458.6,4458.5,2.556]
[1759882202018,3.37202371,4458.6,4458.5,2.556]
[1759882202219,0.40348,4459.0,4458.6,0.9566]
[1759882202415,3.2078,4459.3,4459.1,0.9566]
[1759882202613,3.61124,4459.3,4459.2,0.6375]
[1759882202810,0.225,4459.5,4459.2,0.6375]
[1759882203015,0.40341,4459.7,4459.6,0.9566]
[1759882203214,0.4056965,4459.7,4459.6,2.2003]
[1759882203519,0.4056965,4459.7,4459.6,1.5941]
[1759882204311,0.4056965,4459.7,4459.6,0.9566]
[1759882206320,0.0022865,4459.7,4459.6,1.5941]
[1759882207429,0.0022865,4459.7,4459.6,2.2003]
[1759882207928,2.91697254,4459.7,4459.6,2.2003]
[1759882210024,0.0022865,4459.7,4459.6,2.2003]
[1759882211424,0.0022865,4459.7,4459.6,0.9566]
[1759882211628,2.96866274,4459.7,4459.6,0.9566]
[1759882212425,3.37207274,4459.7,4459.6,0.9566]
[1759882214325,0.40342,4459.6,4459.5,1.3123]
[1759882214724,3.26648014,4459.6,4459.5,1.3123]
[1759882216227,3.79958191,4459.6,4459.5,1.3123]
[1759882216527,3.79958191,4459.6,4459.5,2.556]
[1759882216528,3.39616191,4459.6,4459.5,2.556]
[1759882216733,3.79958191,4459.6,4459.5,2.556]
[1759882217031,3.39616191,4459.6,4459.3,3.2078]
[1759882217339,3.39616191,4459.6,4458.5,1.3123]
[1759882217340,0.40351,4458.6,4458.5,1.3123]
[1759882217727,3.30955982,4458.6,4458.5,1.3123]
[1759882218327,3.84367134,4458.6,4458.5,1.3123]
[1759882218623,3.84367134,4458.6,4458.5,2.556]
[1759882218624,0.53411152,4458.6,4458.5,2.556]
[1759882218930,0.53411152,4458.6,4458.5,2.781]
[1759882220528,0.40353,4458.4,4458.2,0.00274255]
[1759882220726,0.53411152,4458.3,4458.2,0.95934255]
[1759882220930,3.4012587,4458.3,4458.2,2.83158255]
[1759882221134,0.53411152,4458.3,4458.2,2.83158255]
[1759882221334,0.4035,4458.7,4458.6,2.2003]
[1759882221535,0.53521431,4459.0,4458.6,4.4515]
[1759882221735,0.225,4459.1,4459.0,1.5994]
[1759882221932,0.76023611,4459.1,4459.0,2.556]
[1759882222927,3.61968764,4459.1,4459.0,0.3557]
[1759882223230,3.61968764,4459.1,4458.6,3.2078]
[1759882223231,0.4035,4458.7,4458.6,0.9566]
[1759882223430,0.40353,4458.3,4458.2,0.95934255]
[1759882223632,0.62853,4458.3,4458.2,0.95934255]
[1759882223833,4.0652026,4458.3,4458.2,1.59684255]
[1759882227240,4.0652026,4458.3,4458.2,0.95934255]
[1759882227643,0.53523611,4458.3,4458.2,7.46754255]
[1759882227836,0.40349,4458.8,4458.6,1.2832]
[1759882228143,3.50103478,4458.7,4458.6,1.2832]
[1759882228334,3.50103478,4458.7,4458.6,2.1665]
[1759882228536,0.53539701,4458.7,4458.6,2.1665]
[1759882230437,0.53539701,4458.7,4458.6,2.3915]
[1759882231337,0.53539701,4458.7,4458.6,10.5993]
[1759882231538,5.03400793,4459.6,4459.5,1.8896]
[1759882232036,7.9136779,4459.6,4459.5,1.8896]
[1759882232238,7.6886779,4459.6,4459.5,2.5338]
[1759882232545,6.49088997,4459.6,4459.5,2.5338]
[1759882232743,6.71588997,4459.6,4459.5,2.5338]
[1759882233042,6.49088997,4459.6,4459.5,2.5338]
[1759882233243,6.71588997,4459.6,4459.5,2.5338]
[1759882234646,6.08746997,4459.6,4459.5,2.5338]
[1759882234848,6.31246997,4459.6,4459.5,2.5338]
[1759882235338,3.10466997,4459.6,4459.5,2.5338]
[1759882237247,3.50808997,4459.6,4459.5,2.5338]
[1759882237647,3.10466997,4459.6,4459.5,2.5338]
[1759882238144,3.50808997,4459.6,4459.5,2.5338]
[1759882238445,0.0022865,4459.7,4459.6,2.56992]
[1759882240242,1.19778793,4460.3,4460.2,0.40336]
[1759882240447,0.40331,4460.8,4460.7,2.1649]
[1759882240849,3.36072584,4460.8,4460.7,2.1649]
[1759882241240,2.95998647,4460.8,4460.7,2.1649]
[1759882241745,3.18498647,4460.8,4460.7,2.1649]
[1759882242149,2.95998647,4460.8,4460.7,2.1649]
[1759882242444,3.18498647,4460.8,4460.7,2.1649]
[1759882242753,0.00257063,4460.8,4460.7,5.3727]
[1759882244542,0.40341,4459.7,4459.4,0.9421]
[1759882244748,0.175,4459.8,4459.5,0.963]
[1759882244949,0.175,4459.8,4459.0,3.5751]
[1759882244950,3.42171548,4459.7,4459.0,3.5751]
[1759882245149,0.40345,4459.3,4459.0,3.5751]
[1759882245350,0.53240892,4459.2,4459.1,1.5378]
[1759882247046,0.40341,4459.7,4459.5,0.3836]
[1759882247252,0.40341,4459.7,4459.6,4.7456]
[1759882247552,3.78708,4459.7,4459.6,4.7456]
[1759882247946,3.78708,4459.7,4459.6,3.2078]
[1759882249954,3.78708,4459.7,4459.6,4.1499]
[1759882250147,4.01208,4459.7,4459.6,4.7456]
[1759882250344,3.60867,4459.7,4459.1,0.9421]
[1759882250654,0.40345,4459.2,4459.0,0.3673]
[1759882250855,0.225,4459.1,4459.0,1.3094]
[1759882251147,0.40347,4459.0,4458.9,3.2078]
[1759882251347,0.93596972,4459.0,4458.9,3.2078]
[1759882251544,3.51093114,4459.0,4458.3,3.2078]
[1759882251746,1.54120972,4458.9,4458.3,3.2078]
[1759882251947,0.53249972,4458.8,4458.4,0.9421]
[1759882252147,0.40353,4458.4,4458.3,3.2078]
[1759882252351,0.40353,4458.4,4458.3,4.1499]
[1759882252548,3.35756991,4458.4,4458.3,4.1499]
[1759882252954,2.95403991,4458.4,4458.3,4.1499]
[1759882253255,0.40352,4458.5,4458.3,4.1499]
[1759882253556,0.40352,4458.5,4458.4,0.9421]
[1759882253952,2.86882311,4458.5,4458.4,0.9421]
[1759882254153,2.86882311,4458.5,4458.4,1.5378]
[1759882254353,2.90571162,4458.6,4458.5,1.3257]
[1759882254556,0.40351,4458.6,4458.5,0.3836]
[1759882254753,3.30922162,4458.6,4458.5,1.3257]
[1759882256252,3.84186497,4458.6,4458.5,1.3257]
[1759882256552,3.30922162,4458.6,4458.5,1.3257]
[1759882257557,0.40353,4458.4,4458.3,3.2078]
[1759882257856,3.3075965,4458.4,4458.3,4.1648]
[1759882258055,0.40353,4458.3,4457.8,4.1648]
[1759882258256,0.93621027,4458.3,4457.8,4.1648]
[1759882258457,3.89163981,4458.3,4457.8,4.1648]
[1759882258658,3.89163981,4458.3,4457.8,3.2078]
[1759882258659,0.40357,4457.9,4457.8,3.2078]
[1759882258960,4.11667981,4457.9,4457.8,3.2078]
[1759882259257,3.58399954,4457.9,4457.8,4.1648]
[1759882259654,2.95542954,4457.9,4457.8,5.37783055]
[1759882260055,0.62856,4458.0,4457.9,1.5369]
[1759882260356,4.11047891,4458.0,4457.9,1.5369]
[1759882260957,3.57810103,4458.0,4457.9,1.5369]
[1759882262962,3.57810103,4458.0,4457.9,0.957]
[1759882266162,3.57810103,4458.0,4457.9,1.5369]
[1759882267561,3.17454103,4458.0,4457.9,2.1675]
[1759882267760,3.57810103,4458.0,4457.9,2.1675]
[1759882268466,1.00869,4459.0,4457.9,2.1675]
[1759882268763,3.31193887,4458.7,4458.6,4.7447]
[1759882268969,3.53693887,4458.7,4458.6,5.3753]
[1759882269766,2.90843887,4458.7,4458.6,5.3753]
[1759882269962,0.40347,4459.0,4458.6,4.4183]
[1759882270162,0.40346,4459.1,4459.0,1.597]
[1759882270363,0.62846,4459.1,4459.0,2.554]
[1759882270565,3.12843614,4459.1,4459.0,2.554]
[1759882270864,2.20621793,4460.2,4459.5,0.3865]
[1759882270865,1.00843,4460.2,4459.5,0.3865]
[1759882271070,0.40342,4459.6,4459.5,1.9234]
[1759882271267,0.40342,4459.6,4459.0,0.3865]
[1759882271268,1.00871,4458.9,4458.2,3.2078]
[1759882271564,0.40353,4458.3,4458.2,3.2078]
[1759882271766,1.00887,4458.2,4457.6,3.2078]
[1759882271959,0.40356,4458.0,4457.6,3.2078]
[1759882272161,0.225,4457.9,4457.6,3.2078]
[1759882272362,2.92015381,4457.9,4457.8,2.17003055]
[1759882272568,0.225,4458.0,4457.9,0.957]
[1759882272764,0.225,4458.0,4457.9,2.1675]
[1759882273668,0.225,4458.0,4457.9,0.957]
[1759882274270,0.40357,4457.9,4457.8,0.00253055]
[1759882274572,3.80802197,4457.9,4457.8,0.00253055]
[1759882275769,8.80802197,4457.9,4457.8,0.00253055]
[1759882276075,8.80802197,4457.9,4457.0,1.3435]
[1759882276076,0.40363,4457.2,4457.1,3.2078]
[1759882276366,3.59302028,4457.2,4457.1,3.2078]
[1759882276571,3.59302028,4457.2,4457.1,4.1648]
[1759882276963,3.59582961,4457.2,4457.1,4.16690075]
[1759882277170,3.19219961,4457.2,4457.1,4.16690075]
[1759882278575,3.19219961,4457.2,4457.1,3.20990075]
[1759882278769,3.72337851,4457.2,4457.1,3.20990075]
[1759882280177,3.72337851,4457.2,4457.1,0.00210075]
[1759882280773,3.72337851,4457.2,4457.1,7.5e-07]
[1759882285483,4.12700851,4457.2,4457.1,7.5e-07]
[1759882289380,8.72337851,4457.2,4456.0,3.5943]
[1759882289583,0.40378,4455.6,4455.5,3.5943]
[1759882289780,0.62878,4455.6,4455.5,0.3865]
[1759882290080,0.62878,4455.6,4454.4,0.9189]
[1759882290081,0.40388,4454.6,4454.4,0.9189]
[1759882290285,0.40389,4454.4,4454.2,0.18502514]
[1759882290482,0.225,4454.3,4454.2,1.10561985]
[1759882290687,3.1381723,4454.3,4454.2,0.00169471]
[1759882291479,0.40393,4453.9,4453.8,3.2078]
[1759882291680,0.62893,4453.9,4453.8,3.2078]
[1759882291887,3.48267606,4453.9,4453.8,3.2078]
[1759882292389,3.48426426,4453.9,4453.8,3.21044731]
[1759882292586,3.48426426,4453.9,4453.8,0.00264731]
[1759882295986,3.08033426,4453.9,4453.8,4.70184731]
[1759882296581,3.08033426,4453.9,4453.8,0.92154731]
[1759882297287,3.08033426,4453.9,4453.8,0.00264731]
[1759882297888,3.08033426,4453.9,4453.8,1.49404731]
[1759882298383,2.85533426,4453.9,4453.8,1.49404731]
[1759882298688,3.08033426,4453.9,4453.8,1.49404731]
[1759882299084,3.08033426,4453.9,4453.8,0.00264731]
[1759882299689,3.08033426,4453.9,4453.8,0.93534731]
[1759882300787,3.08033426,4453.9,4453.8,0.00264731]
[1759882301181,3.08033426,4453.9,4453.8,0.93534731]
[1759882301682,3.08033426,4453.9,4453.8,0.00264731]
[1759882303987,3.08033426,4453.9,4453.8,0.93534731]
[1759882304183,2.85533426,4453.9,4453.8,2.12854731]
[1759882304386,0.0015882,4453.9,4453.8,10.33634731]
[1759882305480,0.40385,4454.9,4454.8,1.5138]
[1759882305686,0.53385,4454.9,4454.8,1.5138]
[1759882305988,4.03996734,4454.9,4454.8,1.5138]
[1759882306390,4.04227373,4454.9,4454.8,0.9327]
[1759882306684,3.1059659,4454.9,4454.8,1.5138]
[1759882306887,3.1059659,4454.9,4454.6,0.9327]
[1759882306888,0.40387,4454.7,4454.6,0.9327]
[1759882307087,3.1059659,4454.9,4454.5,0.3674]
[1759882307088,3.3798059,4454.9,4454.8,0.5811]
[1759882307283,0.00230639,4454.9,4454.8,2.1259]
[1759882307481,0.00230639,4454.9,4454.8,7.1259]
[1759882310087,0.217,4455.6,4455.5,1.5606]
[1759882310290,0.217,4455.6,4455.5,5.7011]
[1759882310489,3.14156066,4455.6,4455.5,5.7011]
[1759882311190,3.14361694,4455.6,4455.5,5.7011]
[1759882312281,3.67741918,4455.6,4455.5,5.7011]
[1759882313691,3.67741918,4455.6,4455.5,3.2078]
[1759882314900,3.67741918,4455.6,4455.5,4.5079]
[1759882315991,3.67741918,4455.6,4455.5,0.3674]
[1759882316292,0.40382,4455.2,4455.1,0.9327]
[1759882316494,0.62882,4455.2,4455.1,0.9327]
[1759882316691,3.4912027,4455.2,4455.1,0.9327]
[1759882316895,3.4912027,4455.2,4455.0,3.5752]
[1759882317187,0.53490866,4455.1,4455.0,3.2078]
[1759882317392,0.53490866,4455.1,4455.0,4.4619]
[1759882317594,3.51672759,4455.1,4455.0,4.4619]
[1759882318692,3.51672759,4455.1,4455.0,3.5635]
[1759882319989,3.92054759,4455.1,4455.0,3.5635]
[1759882320286,3.92054759,4455.1,4455.0,3.2078]
[1759882320689,3.92054759,4455.1,4455.0,4.4619]
[1759882321296,3.92054759,4455.1,4455.0,5.0379]
[1759882321496,4.14554759,4455.1,4455.0,5.6156]
[1759882321791,3.74172759,4455.1,4455.0,5.6156]
[1759882321995,3.51672759,4455.1,4455.0,5.6156]
[1759882323395,3.51672759,4455.1,4455.0,3.5635]
[1759882323898,3.51672759,4455.1,4455.0,4.4619]
[1759882324299,3.51672759,4455.1,4455.0,5.0379]
[1759882324493,3.51672759,4455.1,4455.0,4.4619]
[1759882326000,3.92054759,4455.1,4455.0,4.4619]
[1759882329701,0.40387,4454.6,4454.5,0.3674]
[1759882329908,0.62887,4454.6,4454.5,0.3674]
[1759882330104,4.10907645,4454.6,4454.5,1.2658]
[1759882337102,3.48020645,4454.6,4454.5,2.4195]
[1759882337304,0.53490866,4454.6,4454.5,2.82338]
[1759882337594,0.62884,4454.9,4454.5,1.5211]
[1759882337796,0.225,4454.9,4454.8,2.0521]
[1759882338097,0.53652076,4454.9,4454.8,2.0521]
[1759882338496,0.53656243,4454.9,4454.8,2.0521]
[1759882338895,0.53656243,4454.9,4454.8,7.0521]
[1759882339402,3.8500069,4454.9,4454.8,0.8984]
[1759882339598,4.0750069,4454.9,4454.8,0.8984]
[1759882341009,0.40387,4454.6,4454.5,4.4736]
[1759882341199,0.62887,4454.6,4454.5,4.4736]
[1759882341401,4.14083568,4454.6,4454.5,1.2658]
[1759882341903,4.14083568,4454.6,4454.5,0.3674]
[1759882342498,0.40391,4454.1,4454.0,3.5752]
[1759882342700,1.1654814,4454.1,4454.0,3.5752]
[1759882342904,4.0698988,4454.1,4454.0,0.3674]
[1759882344297,1.00991,4453.6,4453.0,3.5635]
[1759882344500,0.40401,4453.1,4453.0,4.4619]
[1759882344697,0.225,4453.1,4453.0,5.0379]
[1759882344907,2.85579665,4453.1,4453.0,5.6156]
[1759882345408,0.629,4453.2,4453.1,0.8984]
[1759882345605,0.225,4453.2,4453.1,2.0521]
[1759882345800,3.13806662,4453.2,4453.1,2.0521]
[1759882346607,2.91306662,4453.2,4453.1,2.0521]
[1759882346806,3.13806662,4453.2,4453.1,2.0521]
[1759882347404,0.225,4453.2,4453.1,2.0521]
[1759882347708,1.00984,4453.9,4453.5,0.366]
[1759882347914,1.00991,4453.7,4453.1,0.9164]
[1759882348203,0.404,4453.2,4453.1,0.9164]
[1759882348509,3.57910617,4453.2,4453.1,0.9164]
[1759882348709,3.17510617,4453.2,4453.1,1.5277]
[1759882349107,3.17510617,4453.2,4453.1,2.0905]
[1759882350009,2.95010617,4453.2,4453.1,2.0905]
[1759882350411,0.40398,4453.4,4453.2,0.9164]
[1759882350612,0.40398,4453.4,4453.3,2.0905]
[1759882351007,3.2078,4454.2,4453.5,2.4565]
[1759882351212,1.00964,4454.8,4454.0,2.4565]